bitfinex-derivatives/quotes_BTCF0:USTF0_20251219
["timestamp","ask_amount","ask_price","bid_price","bid_amount"]
[1766132775580,0.0113759,87962.0,87951.0,0.00572]
[1766132775769,0.02457419,87961.0,87951.0,0.00572]
[1766132776073,0.0113763,87959.0,87951.0,0.00572]
[1766132776264,0.02457419,87958.0,87951.0,0.00572]
[1766132776463,0.03595069,87957.0,87950.0,6e-07]
[1766132776675,0.0113769,87955.0,87950.0,6e-07]
[1766132777179,0.0113768,87955.0,87950.0,6e-07]
[1766132777679,0.0113772,87952.0,87948.0,0.00572]
[1766132777881,0.0113767,87956.0,87948.0,0.00572]
[1766132778072,0.02457214,87955.0,87948.0,0.00572]
[1766132778273,0.0113767,87956.0,87948.0,0.00572]
[1766132778475,0.02457226,87955.0,87948.0,0.00572]
[1766132778673,0.0113767,87956.0,87948.0,0.00572]
[1766132778874,0.02457241,87955.0,87948.0,0.00572]
[1766132779078,0.0113767,87956.0,87948.0,0.00572]
[1766132779381,0.0245729,87955.0,87948.0,0.00572]
[1766132779569,0.30260694,87960.0,87948.0,0.00572]
[1766132779769,0.02457316,87959.0,87948.0,0.00572]
[1766132779978,0.02457316,87958.0,87948.0,0.00572]
[1766132780178,0.02457316,87957.0,87948.0,0.00572]
[1766132780381,0.02457316,87956.0,87948.0,0.00572]
[1766132780582,0.02457316,87955.0,87938.0,0.0113789]
[1766132780783,0.30260694,87960.0,87940.0,0.29123074]
[1766132780972,0.02457419,87959.0,87939.0,0.00572]
[1766132781173,0.02457419,87958.0,87939.0,0.00572]
[1766132781471,0.02457419,87957.0,87939.0,0.00572]
[1766132781671,0.02457419,87956.0,87940.0,0.29123074]
[1766132781872,0.02457419,87955.0,87940.0,0.29123074]
[1766132782080,0.0113764,87958.0,87940.0,0.29123074]
[1766132782280,0.0245765,87957.0,87940.0,0.29123074]
[1766132782482,0.0245765,87956.0,87940.0,0.29123074]
[1766132782673,0.0245765,87955.0,87940.0,0.29123074]
[1766132782873,0.0113764,87958.0,87940.0,0.29123074]
[1766132783074,0.02457709,87957.0,87940.0,0.29123074]
[1766132783274,0.0113764,87958.0,87940.0,0.29123074]
[1766132783275,0.02457709,87956.0,87940.0,0.29123074]
[1766132783474,0.02457709,87955.0,87940.0,0.29123074]
[1766132783675,0.02457709,87954.0,87940.0,0.29123074]
[1766132783877,0.0113764,87958.0,87940.0,0.29123074]
[1766132784079,0.0113767,87956.0,87939.0,0.00572]
[1766132784280,0.02457928,87955.0,87939.0,0.00572]
[1766132784484,0.02457928,87954.0,87940.0,0.29123074]
[1766132784684,0.0113763,87959.0,87940.0,0.29123074]
[1766132784985,0.02458271,87958.0,87940.0,0.29123074]
[1766132785175,0.02458271,87957.0,87940.0,0.29123074]
[1766132785372,0.02458271,87956.0,87940.0,0.29123074]
[1766132785577,0.02458271,87955.0,87940.0,0.29123074]
[1766132785772,0.02458271,87954.0,87939.0,0.00572]
[1766132785975,0.0113763,87959.0,87940.0,0.29123074]
[1766132786187,0.02458684,87958.0,87940.0,0.29123074]
[1766132786385,0.02458684,87957.0,87940.0,0.29123074]
[1766132786688,0.02458684,87956.0,87939.0,0.00572]
[1766132786983,0.02458684,87955.0,87940.0,0.29123074]
[1766132787174,0.00572,87962.0,87940.0,0.29123074]
[1766132787175,0.02458684,87954.0,87941.0,0.0113786]
[1766132787373,0.0113754,87966.0,87943.0,0.0113782]
[1766132787576,0.030317,87965.0,87945.0,0.011378]
[1766132787782,0.00572,87965.0,87950.0,0.29123074]
[1766132787982,0.00572,87965.0,87950.0,0.00572]
[1766132788192,0.0113757,87964.0,87950.0,0.00572]
[1766132788483,0.011376,87962.0,87950.0,0.00572]
[1766132789285,0.00572,87965.0,87950.0,0.00572]
[1766132789792,0.29123074,87960.0,87950.0,0.00572]
[1766132790585,0.0113763,87959.0,87950.0,0.00572]
[1766132790786,0.011377,87954.0,87947.0,0.00572]
[1766132790991,0.011377,87954.0,87933.0,0.0113796]
[1766132791191,0.011377,87954.0,87934.0,2.39336]
[1766132791688,0.0113773,87952.0,87934.0,2.39336]
[1766132792089,0.29123074,87950.0,87934.0,2.39336]
[1766132793095,0.0113776,87949.0,87934.0,2.39336]
[1766132795885,0.29123074,87944.0,87934.0,0.00356]
[1766132796093,0.011378,87946.0,87934.0,0.00356]
[1766132798497,0.0001706,87948.0,87934.0,0.00356]
[1766132798994,0.0113779,87947.0,87934.0,0.00356]
[1766132799595,0.02443113,87946.0,87934.0,0.00356]
[1766132799797,0.02443113,87945.0,87934.0,0.00356]
[1766132799998,0.02443113,87944.0,87934.0,0.00356]
[1766132800298,0.0113779,87947.0,87934.0,0.00356]
[1766132800498,0.02443014,87946.0,87934.0,0.00356]
[1766132800796,0.02443014,87945.0,87934.0,0.00356]
[1766132800991,0.02443014,87944.0,87934.0,0.00356]
[1766132801193,0.0001706,87948.0,87934.0,0.00356]
[1766132801393,0.02442907,87947.0,87934.0,0.00356]
[1766132801593,0.02442907,87946.0,87934.0,0.00356]
[1766132801801,0.02442907,87945.0,87934.0,0.00356]
[1766132801998,0.02442907,87944.0,87934.0,0.00356]
[1766132802300,0.0115483,87948.0,87934.0,0.00356]
[1766132802502,0.02442819,87947.0,87934.0,0.00356]
[1766132802802,0.02442819,87946.0,87934.0,0.00356]
[1766132802992,0.02442819,87945.0,87934.0,0.00356]
[1766132803193,0.02442833,87944.0,87934.0,0.00356]
[1766132803504,0.0001706,87948.0,87934.0,0.00356]
[1766132803688,0.02442725,87947.0,87934.0,0.00356]
[1766132803892,0.02442725,87946.0,87934.0,0.00356]
[1766132804092,0.02442725,87945.0,87934.0,0.00356]
[1766132804292,0.0001706,87948.0,87934.0,0.00356]
[1766132804493,0.02442684,87947.0,87934.0,0.00356]
[1766132804698,0.02442684,87946.0,87934.0,0.00356]
[1766132804898,0.03014684,87945.0,87934.0,0.00356]
[1766132805098,0.02442684,87944.0,87934.0,0.00356]
[1766132805595,0.00572,87945.0,87934.0,0.00356]
[1766132806502,0.02442728,87944.0,87934.0,0.00356]
[1766132806697,0.00572,87945.0,87934.0,0.00356]
[1766132807004,0.02442734,87944.0,87934.0,0.00356]
[1766132807305,0.00572,87945.0,87934.0,0.00356]
[1766132807499,0.02442664,87944.0,87934.0,0.00356]
[1766132807700,0.00572,87945.0,87934.0,0.00356]
[1766132807903,0.0244269,87944.0,87934.0,0.00356]
[1766132808207,0.00572,87945.0,87934.0,0.00356]
[1766132808407,0.02442672,87944.0,87934.0,0.00356]
[1766132808609,0.00572,87945.0,87934.0,0.00356]
[1766132808798,0.02442672,87944.0,87934.0,0.00356]
[1766132808992,0.00572,87945.0,87934.0,0.00356]
[1766132809197,0.02442672,87944.0,87934.0,0.00356]
[1766132809409,0.02442748,87943.0,87934.0,0.00356]
[1766132809607,0.02442748,87942.0,87934.0,0.00356]
[1766132809803,0.02442748,87941.0,87934.0,0.00356]
[1766132810002,0.02442748,87940.0,87934.0,0.00356]
[1766132810212,0.00572,87945.0,87934.0,0.00356]
[1766132810509,0.02442557,87944.0,87934.0,0.00356]
[1766132810705,0.02442557,87943.0,87934.0,0.00356]
[1766132811012,0.02442557,87942.0,87934.0,0.00356]
[1766132811204,0.02442557,87941.0,87934.0,0.00356]
[1766132811401,0.02442557,87940.0,87934.0,0.00356]
[1766132811705,0.00572,87945.0,87934.0,0.00356]
[1766132811908,0.02442442,87944.0,87934.0,0.00356]
[1766132812104,0.02442442,87943.0,87934.0,0.00356]
[1766132812305,0.02442442,87942.0,87934.0,0.00356]
[1766132812505,0.02442442,87941.0,87934.0,0.00356]
[1766132812714,0.02442442,87940.0,87934.0,0.00356]
[1766132812907,0.00572,87945.0,87934.0,0.00356]
[1766132813112,0.0244233,87944.0,87934.0,0.00356]
[1766132813311,0.0244233,87943.0,87934.0,0.00356]
[1766132813507,0.0244233,87942.0,87925.0,2.3898]
[1766132813811,0.0244233,87941.0,87926.0,0.00572]
[1766132814010,0.0244233,87940.0,87926.0,0.0171005]
[1766132814211,0.00572,87945.0,87926.0,0.0171005]
[1766132814413,0.02442211,87944.0,87926.0,0.0171005]
[1766132814600,0.02442211,87943.0,87926.0,0.0171005]
[1766132814804,0.02442211,87942.0,87926.0,0.0171005]
[1766132815015,0.02442211,87941.0,87926.0,0.0171005]
[1766132815217,0.02442211,87940.0,87926.0,0.0171005]
[1766132815514,0.00572,87945.0,87926.0,0.0171005]
[1766132815710,0.02442202,87944.0,87926.0,0.0171005]
[1766132815904,0.02442202,87943.0,87930.0,0.29123074]
[1766132816111,0.02442202,87942.0,87930.0,0.29123074]
[1766132816312,0.02442202,87941.0,87930.0,0.29123074]
[1766132816506,0.02442202,87940.0,87930.0,0.29123074]
[1766132816710,0.0170981,87945.0,87930.0,0.29123074]
[1766132816913,0.02442217,87944.0,87930.0,0.29123074]
[1766132817215,0.02442217,87943.0,87926.0,0.00572]
[1766132817406,0.02442217,87942.0,87926.0,0.00572]
[1766132817606,0.02442217,87941.0,87926.0,0.00572]
[1766132817802,0.0113789,87939.0,87926.0,0.00572]
[1766132818009,0.0113785,87942.0,87926.0,0.00572]
[1766132818206,0.02442305,87941.0,87926.0,0.00572]
[1766132818415,0.02442305,87940.0,87926.0,0.00572]
[1766132818616,0.02442305,87939.0,87926.0,0.00572]
[1766132818818,0.0113785,87942.0,87926.0,0.00572]
[1766132819011,0.02442393,87941.0,87926.0,0.00572]
[1766132819207,0.02442393,87940.0,87926.0,0.00572]
[1766132819406,0.02442393,87939.0,87926.0,0.00572]
[1766132819615,0.0170981,87945.0,87926.0,0.00572]
[1766132819817,0.02442565,87944.0,87926.0,0.00572]
[1766132820015,0.02442565,87943.0,87926.0,0.00572]
[1766132820228,0.02442565,87942.0,87926.0,0.00572]
[1766132820520,0.02442565,87941.0,87926.0,0.00572]
[1766132820813,0.02442565,87940.0,87926.0,0.00572]
[1766132821017,0.00572,87945.0,87926.0,0.00572]
[1766132821316,0.02442779,87944.0,87929.0,0.0113801]
[1766132821523,0.00572,87945.0,87929.0,0.0113801]
[1766132821524,0.02442779,87943.0,87929.0,0.0113801]
[1766132821820,0.0113757,87964.0,87942.0,0.0113783]
[1766132822013,0.0113759,87962.0,87942.0,0.00356]
[1766132822813,0.0113763,87959.0,87942.0,0.00356]
[1766132823014,0.00572,87958.0,87942.0,0.0037306]
[1766132823325,0.0113765,87957.0,87942.0,0.0037306]
[1766132823614,0.0001706,87959.0,87951.0,0.0113773]
[1766132823814,0.0001706,87959.0,87949.0,0.00572]
[1766132827316,0.0001706,87959.0,87942.0,0.0001706]
[1766132827517,0.0001706,87959.0,87942.0,6e-07]
[1766132828310,0.0113781,87945.0,87942.0,6e-07]
[1766132829610,0.0170977,87949.0,87942.0,6e-07]
[1766132830016,0.00572,87949.0,87942.0,6e-07]
[1766132833124,0.0113777,87948.0,87942.0,6e-07]
[1766132833820,0.02418839,87947.0,87942.0,6e-07]
[1766132834017,0.02418839,87946.0,87942.0,6e-07]
[1766132834213,0.00572,87949.0,87942.0,6e-07]
[1766132834413,0.02418811,87948.0,87942.0,6e-07]
[1766132834615,0.02418811,87947.0,87942.0,6e-07]
[1766132834816,0.02418811,87946.0,87942.0,6e-07]
[1766132835023,0.00572,87949.0,87942.0,6e-07]
[1766132835242,0.02418804,87948.0,87942.0,6e-07]
[1766132835424,0.00572,87950.0,87942.0,6e-07]
[1766132835616,0.00436,87958.0,87942.0,0.011379]
[1766132835922,0.0001706,87959.0,87942.0,0.011379]
[1766132835923,6e-07,87959.0,87942.0,0.011379]
[1766132836125,6e-07,87959.0,87945.0,0.0113781]
[1766132838523,6e-07,87959.0,87948.0,0.0113777]
[1766132838728,6e-07,87959.0,87949.0,0.00572]
[1766132841728,6e-07,87959.0,87943.0,0.00572]
[1766132842027,6e-07,87959.0,87942.0,6e-07]
[1766132842225,0.0113765,87958.0,87943.0,0.00572]
[1766132844032,6e-07,87959.0,87943.0,0.00572]
[1766132844332,6e-07,87959.0,87944.0,0.00572]
[1766132844736,0.0113769,87959.0,87944.0,0.00572]
[1766132844924,0.0113767,87956.0,87944.0,0.00572]
[1766132845231,0.0113765,87958.0,87944.0,0.00572]
[1766132845434,6e-07,87959.0,87944.0,0.00572]
[1766132846225,0.0113768,87955.0,87944.0,0.00572]
[1766132846932,0.0113769,87959.0,87944.0,0.00572]
[1766132848428,0.0113767,87956.0,87944.0,0.00572]
[1766132849839,0.0113769,87959.0,87944.0,0.00572]
[1766132853832,6e-07,87959.0,87944.0,0.00572]
[1766132854137,0.0113769,87959.0,87944.0,0.00572]
[1766132854637,0.0113767,87956.0,87944.0,0.00572]
[1766132854836,0.0113773,87952.0,87944.0,0.00572]
[1766132855226,0.0113764,87958.0,87944.0,0.00572]
[1766132855431,0.0113767,87956.0,87944.0,0.00572]
[1766132856142,0.0113767,87956.0,87942.0,6e-07]
[1766132856343,6e-07,87959.0,87942.0,6e-07]
[1766132858144,6e-07,87959.0,87943.0,0.0113783]
[1766132858345,6e-07,87959.0,87942.0,6e-07]
[1766132858542,6e-07,87959.0,87943.0,0.0113782]
[1766132862843,6e-07,87959.0,87946.0,0.0113779]
[1766132863250,6e-07,87959.0,87942.0,0.011379]
[1766132863642,6e-07,87959.0,87942.0,6e-07]
[1766132865944,6e-07,87959.0,87943.0,0.0113783]
[1766132867748,6e-07,87959.0,87942.0,6e-07]
[1766132867946,6e-07,87959.0,87943.0,0.0113783]
[1766132868848,6e-07,87959.0,87947.0,0.0113778]
[1766132869250,6e-07,87959.0,87946.0,0.00572]
[1766132869251,6e-07,87959.0,87950.0,0.0113773]
[1766132869452,6e-07,87959.0,87953.0,0.011377]
[1766132869648,6e-07,87959.0,87956.0,0.0113766]
[1766132869851,6e-07,87959.0,87949.0,0.29127092]
[1766132869852,0.0002,87976.0,87959.0,0.0113762]
[1766132870157,0.0115741,87976.0,87955.0,0.00572]
[1766132870855,0.0001706,87974.0,87957.0,0.0001706]
[1766132872253,0.0001706,87974.0,87958.0,0.0113763]
[1766132872452,0.0001706,87974.0,87957.0,0.0001706]
[1766132872767,0.0001706,87974.0,87957.0,0.0115471]
[1766132875544,0.0001706,87974.0,87957.0,0.0001706]
[1766132877261,0.0001706,87974.0,87958.0,0.0113763]
[1766132878349,0.0001706,87974.0,87957.0,0.0115471]
[1766132878550,0.0001706,87974.0,87957.0,0.0001706]
[1766132879054,0.29127092,87970.0,87957.0,6e-07]
[1766132879450,0.0113747,87971.0,87957.0,6e-07]
[1766132879961,0.0113751,87969.0,87957.0,6e-07]
[1766132880554,0.0113746,87972.0,87957.0,6e-07]
[1766132882059,0.29127092,87970.0,87927.0,0.04085836]
[1766132882262,0.0113763,87959.0,87937.0,0.011379]
[1766132882461,0.0113765,87957.0,87933.0,0.0113795]
[1766132882663,0.00572,87958.0,87930.0,0.29127092]
[1766132882960,0.011377,87954.0,87932.0,0.0113797]
[1766132883164,0.0001706,87952.0,87932.0,0.0113797]
[1766132883859,0.0001706,87952.0,87935.0,0.0113793]
[1766132884255,0.0001706,87952.0,87932.0,0.0113798]
[1766132884455,0.0001706,87952.0,87936.0,0.00572]
[1766132884860,0.0001706,87952.0,87917.0,0.04085836]
[1766132885062,0.0113788,87940.0,87912.0,0.04085836]
[1766132885262,0.00364,87939.0,87909.0,0.00572]
[1766132885454,0.00364,87939.0,87910.0,0.29127092]
[1766132886062,0.00472,87938.0,87920.0,0.29127092]
[1766132886251,0.002,87941.0,87921.0,0.00572]
[1766132888370,0.0113788,87940.0,87921.0,0.00572]
[1766132890568,0.30273295,87940.0,87921.0,0.00572]
[1766132890768,0.0113788,87940.0,87921.0,0.00572]
[1766132891171,0.002,87941.0,87921.0,0.00572]
[1766132891856,0.0133786,87941.0,87921.0,0.00572]
[1766132892771,0.0113791,87937.0,87921.0,0.00572]
[1766132895178,0.0113796,87934.0,87921.0,0.00572]
[1766132895771,0.01138,87931.0,87921.0,0.00572]
[1766132897368,0.30273415,87931.0,87910.0,0.29135415]
[1766132897565,0.30273415,87931.0,87908.0,0.0113828]
[1766132897566,0.01138,87931.0,87914.0,0.00572]
[1766132899767,0.0113803,87928.0,87914.0,0.00572]
[1766132900178,0.0170998,87932.0,87914.0,0.00572]
[1766132900384,0.0113802,87929.0,87914.0,0.00572]
[1766132901184,0.00572,87932.0,87914.0,0.00572]
[1766132901479,0.0113806,87926.0,87914.0,0.00572]
[1766132903288,0.0113811,87922.0,87914.0,0.00572]
[1766132904095,0.0113813,87920.0,87898.0,2.4016241]
[1766132904297,0.0001706,87918.0,87900.0,0.29135415]
[1766132904494,0.0001706,87918.0,87900.0,0.30273795]
[1766132905499,0.0001706,87918.0,87908.0,0.29135415]
[1766132905800,0.0001706,87918.0,87899.0,0.00572]
[1766132905999,0.0001706,87918.0,87901.0,0.0113837]
[1766132906202,0.0001706,87918.0,87899.0,0.00572]
[1766132906203,0.0001706,87918.0,87908.0,0.29135415]
[1766132907287,0.00505081,87922.0,87908.0,0.29135415]
[1766132907493,0.00505081,87922.0,87910.0,0.29135415]
[1766132908390,0.29135415,87920.0,87907.0,0.0001706]
[1766132908593,0.0113831,87907.0,87901.0,0.00572]
[1766132908793,0.30273665,87911.0,87895.0,0.00572]
[1766132909287,0.0113829,87908.0,87895.0,0.00572]
[1766132910797,0.29135415,87910.0,87895.0,0.00572]
[1766132911405,0.0113824,87912.0,87895.0,0.00572]
[1766132911801,0.0113824,87912.0,87891.0,0.011385]
[1766132912700,0.29135415,87910.0,87891.0,0.011385]
[1766132912897,0.0113827,87909.0,87890.0,0.29135415]
[1766132913295,0.00572,87913.0,87885.0,0.00572]
[1766132913608,0.0113833,87905.0,87890.0,0.29135415]
[1766132913904,0.0131833,87905.0,87885.0,0.00572]
[1766132914107,0.0113841,87899.0,87885.0,0.00572]
[1766132914297,0.00572,87898.0,87878.0,0.0113866]
[1766132914498,0.00572,87897.0,87875.0,0.00572]
[1766132914699,0.00284,87896.0,87875.0,0.00572]
[1766132914895,0.0113846,87895.0,87875.0,0.00572]
[1766132915099,0.00284,87896.0,87875.0,0.00572]
[1766132915299,0.29135415,87891.0,87875.0,0.00572]
[1766132915695,0.0113852,87890.0,87881.0,1e-07]
[1766132916011,0.0171054,87889.0,87881.0,1e-07]
[1766132916906,0.0171054,87889.0,87863.0,0.06148476]
[1766132916907,0.0113859,87885.0,87863.0,7.982e-05]
[1766132917107,0.0001706,87883.0,87863.0,7.982e-05]
[1766132917699,0.00572,87882.0,87863.0,7.982e-05]
[1766132918411,0.0171063,87882.0,87863.0,7.982e-05]
[1766132919400,0.0113868,87878.0,87863.0,7.982e-05]
[1766132920897,0.00572,87882.0,87861.0,0.00572]
[1766132920898,0.011388,87869.0,87861.0,0.00572]
[1766132921107,0.011388,87869.0,87860.0,0.00572]
[1766132921406,0.29135415,87880.0,87856.0,2.39068]
[1766132921407,0.29135415,87870.0,87856.0,0.00572]
[1766132921609,0.00572,87870.0,87856.0,1e-07]
[1766132921809,0.0113885,87865.0,87856.0,1e-07]
[1766132922609,0.0113885,87865.0,87850.0,0.29135415]
[1766132922812,0.29135415,87860.0,87847.0,0.06140494]
[1766132923113,0.0113897,87856.0,87845.0,0.00572]
[1766132923502,0.0113891,87860.0,87845.0,0.00572]
[1766132924108,0.30274325,87860.0,87845.0,0.00572]
[1766132925301,0.0113891,87860.0,87845.0,0.00572]
[1766132925497,0.30274325,87860.0,87845.0,0.00572]
[1766132925703,0.0113896,87857.0,87839.0,0.06140494]
[1766132925913,0.0113896,87857.0,87838.0,0.06140494]
[1766132925914,0.00572,87856.0,87838.0,0.06140494]
[1766132926415,0.29135415,87854.0,87837.0,0.06712494]
[1766132926610,0.0113916,87841.0,87829.0,0.00572]
[1766132926803,0.29135415,87840.0,87829.0,0.00572]
[1766132927305,0.0113938,87824.0,87818.0,1e-08]
[1766132927606,0.0171138,87824.0,87818.0,1e-08]
[1766132927805,0.00572,87824.0,87818.0,1e-08]
[1766132928513,8.758e-05,87823.0,87818.0,1e-08]
[1766132929208,8.758e-05,87823.0,87808.0,0.01]
[1766132929414,0.00288,87822.0,87795.0,2.39652]
[1766132929612,8.758e-05,87823.0,87795.0,2.39652]
[1766132929808,0.0113913,87844.0,87814.0,0.011395]
[1766132930113,0.0036,87843.0,87820.0,0.30274835]
[1766132930305,0.0036,87842.0,87820.0,0.30274835]
[1766132930505,0.00572,87841.0,87820.0,0.29135415]
[1766132930707,0.0001708,87839.0,87822.0,0.0001708]
[1766132930907,0.0001708,87839.0,87829.0,0.29135415]
[1766132930908,0.00068,87838.0,87829.0,0.29135415]
[1766132931114,0.0001708,87839.0,87824.0,0.00572]
[1766132932406,0.0001708,87839.0,87822.0,0.0001708]
[1766132936418,0.011392,87838.0,87822.0,0.0001708]
[1766132936717,0.0001708,87839.0,87822.0,0.0001708]
[1766132938109,0.0001708,87839.0,87815.0,0.00572]
[1766132938316,0.0113926,87833.0,87815.0,0.00572]
[1766132938514,0.0113926,87833.0,87775.0,0.0570002]
[1766132938515,0.29198357,87825.0,87771.0,0.0100001]
[1766132938717,0.29198357,87825.0,87794.0,0.0113976]
[1766132938718,0.011394,87822.0,87794.0,0.0113976]
[1766132939017,0.0113944,87820.0,87795.0,0.00572]
[1766132939218,0.0001708,87816.0,87795.0,0.00572]
[1766132939410,8.36e-05,87832.0,87795.0,0.00572]
[1766132939609,8.36e-05,87832.0,87808.0,0.0113958]
[1766132939820,0.00364,87831.0,87815.0,0.0113949]
[1766132940022,0.0019236,87832.0,87818.0,0.0113944]
[1766132940219,0.0019236,87832.0,87810.0,0.29558357]
[1766132940220,0.0019236,87832.0,87814.0,0.011395]
[1766132940417,8.36e-05,87832.0,87814.0,0.011395]
[1766132940621,0.0002544,87832.0,87814.0,0.0115658]
[1766132941524,0.0002544,87832.0,87814.0,0.0001708]
[1766132941525,4.4e-06,87832.0,87814.0,0.0001708]
[1766132942312,0.0113929,87831.0,87814.0,0.0001708]
[1766132942515,0.0113937,87825.0,87814.0,0.0001708]
[1766132942919,0.0113939,87823.0,87796.0,0.0171174]
[1766132943221,0.00572,87824.0,87803.0,0.0113964]
[1766132944028,0.0001708,87822.0,87805.0,0.00016876]
[1766132944421,0.00572,87824.0,87805.0,0.00016876]
[1766132944720,0.00136,87829.0,87806.0,0.0113961]
[1766132945028,0.00136,87829.0,87807.0,0.00572]
[1766132945626,0.0001708,87827.0,87807.0,0.00572]
[1766132946327,0.0115642,87827.0,87807.0,0.00572]
[1766132946716,0.0113939,87824.0,87807.0,0.00572]
[1766132947221,0.0113942,87821.0,87807.0,0.00572]
[1766132947724,0.0113936,87825.0,87807.0,0.00572]
[1766132949023,0.0113941,87821.0,87807.0,0.00572]
[1766132950725,0.0113946,87818.0,87807.0,0.00572]
[1766132950925,0.0113946,87818.0,87796.0,0.0113973]
[1766132950926,0.29770357,87817.0,87778.0,9e-08]
[1766132951225,0.0113943,87820.0,87780.0,0.29198357]
[1766132951534,0.0113946,87818.0,87795.0,0.0113975]
[1766132951727,0.0113946,87818.0,87796.0,0.00572]
[1766132951932,0.0001708,87816.0,87798.0,0.0001708]
[1766132952224,0.011395,87815.0,87798.0,0.0001708]
[1766132955328,0.0113953,87812.0,87798.0,0.0001708]
[1766132955733,0.0113958,87809.0,87798.0,0.0001708]
[1766132955928,0.00572,87808.0,87798.0,8e-07]
[1766132956129,0.0001708,87816.0,87798.0,8e-07]
[1766132956130,0.00444,87812.0,87798.0,8e-07]
[1766132956432,0.0038,87812.0,87798.0,8e-07]
[1766132957328,0.0001708,87816.0,87798.0,8e-07]
[1766132959719,0.0115657,87816.0,87798.0,8e-07]
[1766132960434,0.0001708,87816.0,87798.0,8e-07]
[1766132962126,0.02471267,87815.0,87798.0,8e-07]
[1766132962326,0.0001708,87816.0,87798.0,8e-07]
[1766132962536,0.02471385,87815.0,87798.0,8e-07]
[1766132962737,0.0001708,87816.0,87798.0,8e-07]
[1766132962938,0.02471362,87815.0,87798.0,8e-07]
[1766132963127,0.0001708,87816.0,87798.0,8e-07]
[1766132963328,0.02471421,87815.0,87798.0,8e-07]
[1766132963538,0.0115656,87816.0,87798.0,8e-07]
[1766132963738,0.02471419,87815.0,87798.0,8e-07]
[1766132963939,0.0115656,87816.0,87798.0,8e-07]
[1766132964137,0.0113951,87814.0,87798.0,8e-07]
[1766132964940,0.0113956,87810.0,87798.0,8e-07]
[1766132965439,0.0171156,87810.0,87798.0,8e-07]
[1766132966239,0.011397,87800.0,87798.0,8e-07]
[1766132969540,0.0113964,87804.0,87798.0,8e-07]
[1766132969740,0.0001708,87816.0,87798.0,8e-07]
[1766132969946,0.03070726,87815.0,87798.0,8e-07]
[1766132970141,0.02498726,87814.0,87798.0,8e-07]
[1766132970330,0.00572,87813.0,87798.0,8e-07]
[1766132970941,0.00444,87814.0,87798.0,0.0113979]
[1766132971143,0.00224,87813.0,87801.0,0.0113967]
[1766132971747,0.00224,87813.0,87798.0,8e-07]
[1766132972046,0.00112,87812.0,87798.0,8e-07]
[1766132972246,0.00112,87812.0,87798.0,0.0113978]
[1766132973348,0.00056,87812.0,87798.0,0.0113978]
[1766132974245,0.0001708,87816.0,87798.0,0.0113978]
[1766132974840,0.0001708,87816.0,87801.0,0.0113967]
[1766132975252,0.00168,87815.0,87801.0,0.0113967]
[1766132975452,0.0018,87814.0,87801.0,0.0113967]
[1766132975653,0.0001708,87816.0,87801.0,0.0113967]
[1766132975854,0.0001708,87816.0,87799.0,0.0113969]
[1766132976045,0.0001708,87816.0,87798.0,8e-07]
[1766132978261,0.0115656,87816.0,87798.0,8e-07]
[1766132978563,0.02504331,87815.0,87798.0,8e-07]
[1766132978749,0.02504331,87814.0,87798.0,8e-07]
[1766132978949,0.02504331,87813.0,87798.0,8e-07]
[1766132979153,0.02504331,87812.0,87798.0,8e-07]
[1766132979351,0.0115656,87816.0,87798.0,8e-07]
[1766132979352,0.0113961,87806.0,87798.0,8e-07]
[1766132979659,0.03076331,87805.0,87798.0,8e-07]
[1766132979959,0.02504331,87804.0,87798.0,8e-07]
[1766132980145,0.02504331,87803.0,87798.0,8e-07]
[1766132980350,0.02504331,87802.0,87798.0,8e-07]
[1766132980657,0.02504331,87801.0,87798.0,8e-07]
[1766132980858,0.00572,87805.0,87798.0,8e-07]
[1766132981061,0.03642354,87804.0,87798.0,8e-07]
[1766132981357,0.0113966,87802.0,87798.0,8e-07]
[1766132981556,0.02502714,87801.0,87798.0,8e-07]
[1766132981751,0.02502714,87800.0,87798.0,8e-07]
[1766132981953,0.0113966,87802.0,87798.0,8e-07]
[1766132982263,0.02501991,87801.0,87798.0,8e-07]
[1766132982562,0.0113966,87802.0,87798.0,8e-07]
[1766132982756,0.02501275,87801.0,87798.0,8e-07]
[1766132982958,0.0113966,87802.0,87798.0,8e-07]
[1766132983149,0.02501277,87801.0,87798.0,8e-07]
[1766132983350,0.0113966,87802.0,87798.0,8e-07]
[1766132983547,0.0113969,87800.0,87798.0,8e-07]
[1766132984562,0.00572,87799.0,87798.0,8e-07]
[1766132990270,0.0113959,87808.0,87798.0,8e-07]
[1766132990471,0.0113961,87806.0,87798.0,8e-07]
[1766132990676,0.02498765,87805.0,87798.0,8e-07]
[1766132990983,0.02498765,87804.0,87798.0,8e-07]
[1766132991170,0.02498765,87803.0,87798.0,8e-07]
[1766132991478,0.0113961,87806.0,87798.0,8e-07]
[1766132991675,0.0113963,87804.0,87798.0,8e-07]
[1766132991881,0.00572,87807.0,87777.0,8e-08]
[1766132991882,0.02510837,87803.0,87777.0,8e-08]
[1766132992181,0.0113974,87796.0,87761.0,0.0114019]
[1766132992380,0.03070369,87795.0,87773.0,0.0114003]
[1766132992568,0.00572,87794.0,87773.0,0.0114003]
[1766132992769,0.00012115,87803.0,87773.0,0.0114003]
[1766132992770,0.00572,87793.0,87773.0,0.0114003]
[1766132992970,0.0001708,87792.0,87773.0,0.0114003]
[1766132993281,0.0001708,87792.0,87771.0,0.0157201]
[1766132993671,0.00188,87791.0,87771.0,0.0157201]
[1766132994783,0.0001708,87792.0,87771.0,0.0157201]
[1766132995087,0.00064,87791.0,87771.0,0.0157201]
[1766132995587,0.00064,87791.0,87771.0,0.0100001]
[1766133000271,0.29231827,87790.0,87771.0,0.0100001]
[1766133000679,0.0001708,87792.0,87771.0,0.0100001]
[1766133000878,0.00364,87791.0,87771.0,0.0100001]
[1766133002879,0.0048,87790.0,87776.0,0.0114]
[1766133003074,0.0001708,87792.0,87771.0,0.0100001]
[1766133003490,0.00012115,87803.0,87771.0,0.0100001]
[1766133003685,0.00012115,87803.0,87776.0,0.0114]
[1766133003686,0.0113968,87801.0,87776.0,0.0114]
[1766133003875,0.0252755,87800.0,87780.0,0.29231827]
[1766133004079,0.0252755,87799.0,87780.0,0.29231827]
[1766133004391,0.0309955,87798.0,87778.0,0.00572]
[1766133004697,0.0252755,87797.0,87781.0,0.0001708]
[1766133004882,0.0113979,87793.0,87781.0,0.0001708]
[1766133006688,0.0058908,87798.0,87781.0,0.0001708]
[1766133006887,0.02529585,87797.0,87781.0,0.0001708]
[1766133007093,0.02529585,87796.0,87781.0,0.0001708]